fUSD/lending_fUSD_20241215
["ID","MTS","AMOUNT","RATE_DAILY","PERIOD"]
[345483247,1734283863237,-500.0,0.00019684,3]
[345483248,1734283863247,-500.0,0.00019684,3]
[345483249,1734283863257,-500.0,0.00019684,3]
[345483250,1734283863268,-425.33,0.00019684,3]
[345483251,1734283863277,-500.0,0.00019684,3]
[345483252,1734283863287,-500.0,0.00019684,3]
[345483253,1734283863296,-500.0,0.00019684,3]
[345483254,1734283863306,-215.46,0.00019684,3]
[345483255,1734283863316,-327.0,0.00019684,3]
[345483256,1734283863325,-640.66,0.00019684,3]
[345483257,1734283863335,-500.0,0.00019684,3]
[345483258,1734283863344,-500.0,0.00019684,3]
[345483259,1734283863353,-314.53,0.00019684,3]
[345483260,1734283863363,-500.0,0.00019684,3]
[345483261,1734283863373,-500.0,0.00019684,3]
[345483262,1734283863382,-500.0,0.00019684,3]
[345483263,1734283863392,-500.0,0.00019684,3]
[345483264,1734283863401,-500.0,0.00019684,3]
[345483265,1734283863410,-500.0,0.00019684,3]
[345483266,1734283863420,-500.0,0.00019684,3]
[345483267,1734283863429,-500.0,0.00019684,3]
[345483268,1734283863439,-500.0,0.00019684,3]
[345483269,1734283863448,-500.0,0.00019684,3]
[345483270,1734283863457,-528.97,0.00019684,3]
[345483271,1734283863466,-500.0,0.00019684,3]
[345483272,1734283863476,-500.0,0.00019684,3]
[345483273,1734283863485,-500.0,0.00019684,3]
[345483274,1734283863495,-500.0,0.00019684,3]
[345483275,1734283863504,-500.0,0.00019684,3]
[345483276,1734283863513,-500.0,0.00019684,3]
[345483277,1734283863524,-500.0,0.00019684,3]
[345483278,1734283863534,-511.21,0.00019684,3]
[345483279,1734283863544,-500.0,0.00019684,3]
[345483280,1734283863553,-500.0,0.00019684,3]
[345483281,1734283863562,-500.0,0.00019684,3]
[345483282,1734283863572,-500.0,0.00019684,3]
[345483283,1734283863581,-254.27,0.00019684,3]
[345483284,1734283863591,-849.22,0.00019684,3]
[345483285,1734283863601,-500.0,0.00019684,3]
[345483286,1734283863610,-560.29,0.00019684,3]
[345483287,1734283863620,-153.71,0.00019684,3]
[345483288,1734283863629,-500.0,0.00019684,3]
[345483289,1734283863639,-500.0,0.00019684,3]
[345483290,1734283863649,-500.0,0.00019684,3]
[345483291,1734283863658,-500.0,0.00019684,3]
[345483292,1734283863667,-500.0,0.00019684,3]
[345483293,1734283863677,-500.0,0.00019684,3]
[345483294,1734283863686,-2296.3,0.00019684,3]
[345483295,1734283863696,-523.97,0.00019684,3]
[345483296,1734283863705,-500.0,0.00019684,3]
[345483297,1734283863715,-234.84,0.00019684,3]
[345483298,1734283863724,-500.0,0.00019684,3]
[345483299,1734283863734,-500.0,0.00019684,3]
[345483300,1734283863744,-694.97,0.00019684,3]
[345483301,1734283863753,-581.12025658,0.00019684,3]
[345483302,1734283863763,-500.0,0.00019684,3]
[345483303,1734283863774,-375.23,0.00019684,3]
[345483304,1734283863785,-500.0,0.00019684,3]
[345483305,1734283863796,-546.21,0.00019684,3]
[345483306,1734283863806,-596.38,0.00019684,3]
[345483307,1734283863815,-500.0,0.00019684,3]
[345483308,1734283863826,-500.0,0.00019684,3]
[345483309,1734283863836,-619.61,0.00019684,3]
[345483310,1734283863845,-500.0,0.00019684,3]
[345483311,1734283863855,-500.0,0.00019684,3]
[345483312,1734283863866,-542.34,0.00019684,3]
[345483313,1734283863875,-500.0,0.00019684,3]
[345483314,1734283863885,-500.0,0.00019684,3]
[345483315,1734283863895,-552.28,0.00019684,3]
[345483316,1734283863904,-500.0,0.00019684,3]
[345483317,1734283863914,-500.0,0.00019684,3]
[345483318,1734283863924,-469.72,0.00019684,3]
[345483319,1734283863933,-529.38,0.00019684,3]
[345483320,1734283863942,-500.0,0.00019684,3]
[345483321,1734283863952,-500.0,0.00019684,3]
[345483322,1734283863962,-500.0,0.00019684,3]
[345483323,1734283863972,-577.71,0.00019685,3]
[345483324,1734283863981,-500.0,0.00019685,3]
[345483325,1734283863991,-500.0,0.00019685,3]
[345483326,1734283864000,-500.0,0.00019685,3]
[345483327,1734283864010,-500.0,0.00019685,3]
[345483328,1734283864021,-500.0,0.00019685,3]
[345483329,1734283864030,-500.0,0.00019685,3]
[345483330,1734283864040,-500.0,0.00019685,3]
[345483331,1734283864049,-500.0,0.00019685,3]
[345483332,1734283864059,-500.0,0.00019685,3]
[345483333,1734283864068,-500.0,0.00019685,3]
[345483334,1734283864078,-500.0,0.00019685,3]
[345483335,1734283864087,-500.0,0.00019685,3]
[345483336,1734283864097,-538.45,0.00019685,3]
[345483337,1734283864107,-500.0,0.00019685,3]
[345483338,1734283864116,-587.87181529,0.00019685,3]
[345483339,1734283864125,-500.0,0.00019685,3]
[345483340,1734283864135,-500.0,0.00019685,3]
[345483341,1734283864144,-500.0,0.00019685,3]
[345483342,1734283864155,-500.0,0.00019685,3]
[345483343,1734283864165,-500.0,0.00019685,3]
[345483344,1734283864175,-500.0,0.00019685,3]
[345483345,1734283864185,-500.0,0.00019685,3]
[345483346,1734283864194,-500.0,0.00019685,3]
[345483347,1734283864204,-500.0,0.00019685,3]
[345483348,1734283864214,-500.0,0.00019685,3]
[345483349,1734283864223,-500.0,0.00019685,3]
[345483350,1734283864233,-500.0,0.00019685,3]
[345483351,1734283864242,-500.0,0.00019685,3]
[345483352,1734283864252,-500.0,0.00019685,3]
[345483353,1734283864261,-500.0,0.00019685,3]
[345483354,1734283864272,-500.0,0.00019685,3]
[345483355,1734283864285,-153.84,0.00019685,3]
[345483356,1734283864294,-574.4,0.00019685,3]
[345483357,1734283864303,-500.0,0.00019685,3]
[345483358,1734283864313,-500.0,0.00019685,3]
[345483359,1734283864322,-500.0,0.00019685,3]
[345483360,1734283864332,-500.0,0.00019685,3]
[345483361,1734283864341,-500.0,0.00019685,3]
[345483362,1734283864351,-500.0,0.00019685,3]
[345483363,1734283864360,-500.0,0.00019685,3]
[345483364,1734283864370,-500.0,0.00019685,3]
[345483365,1734283864379,-524.7,0.00019685,3]
[345483366,1734283864388,-500.0,0.00019685,3]
[345483367,1734283864399,-229.38,0.00019685,3]
[345483368,1734283864408,-500.0,0.00019685,3]
[345483369,1734283864418,-500.0,0.00019685,3]
[345483370,1734283864427,-500.0,0.00019685,3]
[345483371,1734283864437,-500.0,0.00019685,3]
[345483372,1734283864446,-500.0,0.00019685,3]
[345483373,1734283864456,-500.0,0.00019685,3]
[345483374,1734283864465,-500.0,0.00019685,3]
[345483375,1734283864474,-500.0,0.00019685,3]
[345483376,1734283864484,-500.0,0.00019685,3]
[345483377,1734283864493,-500.0,0.00019685,3]
[345483378,1734283864503,-340.79156331,0.00019685,2]
[345483379,1734283864520,-159.20843669,0.00019685,2]
[345483380,1734283864530,-117.80087544,0.00019685,2]
[345483381,1734283864546,-382.19912456,0.00019685,2]
[345483382,1734283864555,-500.0,0.00019685,3]
[345483383,1734283864565,-500.0,0.00019685,3]
[345483384,1734283864576,-500.0,0.00019685,3]
[345483385,1734283864586,-500.0,0.00019685,3]
[345483386,1734283864595,-500.0,0.00019685,3]
[345483387,1734283864605,-500.0,0.00019685,3]
[345483388,1734283864614,-217.31,0.00019685,3]
[345483389,1734283864624,-500.0,0.00019685,3]
[345483390,1734283864634,-500.0,0.00019685,3]
[345483391,1734283864644,-500.0,0.00019685,3]
[345483392,1734283864654,-500.0,0.00019685,3]
[345483393,1734283864663,-500.0,0.00019685,3]
[345483394,1734283864673,-500.0,0.00019685,3]
[345483395,1734283864683,-500.0,0.00019685,3]
[345483396,1734283864692,-500.0,0.00019685,3]
[345483397,1734283864703,-500.0,0.00019685,3]
[345483398,1734283864712,-37.49087644,0.00019685,3]
[345483399,1734283864723,-462.50912356,0.00019685,3]
[345483400,1734283864733,-500.0,0.00019685,3]
[345483401,1734283864743,-500.0,0.00019685,3]
[345483402,1734283864753,-485.29087634,0.00019685,3]
[345483404,1734284008982,157.98,0.00010137,2]
[345483412,1734284583294,450.0,0.00013,2]
[345483413,1734284584533,500.0,0.00015,2]
[345483423,1734285031785,-1027.69310528,0.00016583,10]
[345483424,1734285031796,-4591.30689472,0.00016583,10]
[345483425,1734285031806,-1057.31,0.00016583,2]
[345483426,1734285031815,-550.0,0.00017,2]
[345483427,1734285031825,-157.98,0.00017599,2]
[345483428,1734285031834,-1130.95819368,0.00017984,2]
[345483429,1734285031845,-2263.61180632,0.00017984,2]
[345483430,1734285031854,-150.27,0.00018082,2]
[345483431,1734285031863,-1000.0,0.00018115,2]
[345483432,1734285031872,-516.62,0.00018358,2]
[345483433,1734285031882,-300.0,0.00018364,2]
[345483434,1734285031891,-3473.72142448,0.00018365,2]
[345483435,1734285031906,-375.87438769,0.00018365,2]
[345483436,1734285032089,-541.345,0.00018365,2]
[345483437,1734285032103,-2355.17918783,0.00018365,2]
[345483438,1734285032113,-250.0,0.00018399,2]
[345483439,1734285032124,-150.0,0.000184,2]
[345483440,1734285032134,-150.0,0.00018493,2]
[345483441,1734285032145,-250.0,0.00018509,2]
[345483442,1734285032154,-355.53,0.00018532,2]
[345483443,1734285032165,-545.08,0.00018569,2]
[345483444,1734285032175,-500.0,0.00018664,2]
[345483446,1734285032184,-728.94,0.00018678,2]
[345483448,1734285032194,-150.0,0.00018678,2]
[345483449,1734285032204,-975.22,0.00018778,2]
[345483452,1734285032215,-397.77,0.00018778,2]
[345483453,1734285032224,-151.17,0.00018778,2]
[345483455,1734285032234,-1057.31,0.00018847,2]
[345483457,1734285032243,-150.27,0.00018974,2]
[345483459,1734285032253,-2146.4725081,0.00019,3]
[345483461,1734285032263,-349.478,0.00019,2]
[345483463,1734285032272,-600.0,0.00019,2]
[345483465,1734285032281,-130.26007862,0.00019204,2]
[345483517,1734285037794,-719.73992138,0.00019204,2]
[345483518,1734285037804,-150.0,0.00019205,2]
[345483519,1734285037814,-150.0,0.00019205,2]
[345483520,1734285037824,-364.65,0.00019205,2]
[345483521,1734285037834,-150.0,0.00019205,2]
[345483522,1734285037843,-150.0,0.00019205,2]
[345483523,1734285037852,-364.65,0.00019205,2]
[345483524,1734285037863,-150.0,0.00019205,2]
[345483525,1734285037874,-364.65,0.00019205,2]
[345483526,1734285037883,-150.0,0.00019205,2]
[345483527,1734285037893,-150.0,0.00019205,2]
[345483528,1734285037903,-364.65,0.00019205,2]
[345483529,1734285037914,-150.0,0.00019205,2]
[345483530,1734285037925,-150.0,0.00019205,2]
[345483531,1734285037935,-150.0,0.00019205,2]
[345483532,1734285037945,-364.65,0.00019205,2]
[345483533,1734285037955,-364.65,0.00019205,2]
[345483534,1734285037965,-364.65,0.00019205,2]
[345483535,1734285037975,-363.61,0.00019205,2]
[345483536,1734285037983,-355.53,0.00019217,2]
[345483537,1734285037994,-5147.08,0.00019339,2]
[345483538,1734285038003,-5015.02,0.00019339,2]
[345483539,1734285038015,-999.99,0.00019339,2]
[345483540,1734285038024,-150.99,0.00019339,2]
[345483541,1734285038034,-7255.74,0.00019339,2]
[345483542,1734285038043,-715.816153,0.00019384,2]
[345483543,1734285038053,-254.0574,0.00019385,2]
[345483544,1734285038062,-5000.0,0.00019385,2]
[345483545,1734285038072,-715.81615298,0.00019441,2]
[345483546,1734285038082,-161.4,0.00019475,2]
[345483547,1734285038091,-500.0,0.00019483,3]
[345483548,1734285038101,-500.0,0.00019484,3]
[345483549,1734285038111,-500.0,0.00019484,3]
[345483550,1734285038122,-439.75276268,0.00019484,3]
[345483551,1734285038134,-60.24723732,0.00019484,3]
[345483552,1734285038145,-500.0,0.00019484,3]
[345483553,1734285038155,-500.0,0.00019484,3]
[345483554,1734285038164,-500.0,0.00019484,3]
[345483555,1734285038174,-500.0,0.00019484,3]
[345483556,1734285038183,-500.0,0.00019484,3]
[345483557,1734285038193,-500.0,0.00019484,3]
[345483558,1734285038202,-500.0,0.00019484,3]
[345483559,1734285038211,-500.0,0.00019484,3]
[345483560,1734285038221,-621.43,0.00019484,3]
[345483561,1734285038231,-500.0,0.00019484,3]
[345483562,1734285038240,-500.0,0.00019484,3]
[345483563,1734285038250,-598.92,0.00019484,3]
[345483564,1734285038259,-500.0,0.00019484,3]
[345483565,1734285038271,-500.0,0.00019484,3]
[345483566,1734285038281,-195.54560828,0.00019484,3]
[345483567,1734285038290,-604.32,0.00019484,3]
[345483568,1734285038299,-500.0,0.00019484,2]
[345483570,1734285038308,-542.34,0.00019484,3]
[345483571,1734285038318,-500.0,0.00019484,3]
[345483573,1734285038327,-500.0,0.00019484,3]
[345483575,1734285038336,-500.0,0.00019484,3]
[345483576,1734285038345,-500.0,0.00019484,3]
[345483577,1734285038355,-500.0,0.00019484,3]
[345483579,1734285038365,-500.0,0.00019484,3]
[345483580,1734285038375,-500.0,0.00019484,3]
[345483581,1734285038385,-500.0,0.00019484,3]
[345483582,1734285038397,-500.0,0.00019484,3]
[345483583,1734285038406,-500.0,0.00019484,3]
[345483584,1734285038416,-500.0,0.00019484,3]
[345483585,1734285038427,-500.0,0.00019484,3]
[345483586,1734285038436,-500.0,0.00019484,3]
[345483587,1734285038445,-500.0,0.00019484,3]
[345483588,1734285038455,-500.0,0.00019484,3]
[345483589,1734285038465,-500.0,0.00019484,3]
[345483590,1734285038476,-197.98390967,0.00019484,3]
[345483591,1734285038485,-500.0,0.00019484,3]
[345483592,1734285038495,-543.38,0.00019484,3]
[345483593,1734285038504,-500.0,0.00019484,3]
[345483594,1734285038515,-500.0,0.00019484,3]
[345483595,1734285038525,-500.0,0.00019484,3]
[345483596,1734285038535,-642.24,0.00019484,3]
[345483597,1734285038544,-500.0,0.00019484,3]
[345483598,1734285038553,-500.0,0.00019484,3]
[345483599,1734285038563,-500.0,0.00019484,3]
[345483600,1734285038574,-500.0,0.00019484,3]
[345483601,1734285038583,-500.0,0.00019484,3]
[345483602,1734285038593,-500.0,0.00019484,3]
[345483603,1734285038602,-500.0,0.00019484,3]
[345483605,1734285038611,-500.0,0.00019484,3]
[345483607,1734285038620,-500.0,0.00019484,3]
[345483609,1734285038629,-500.0,0.00019484,3]
[345483610,1734285038640,-500.0,0.00019484,3]
[345483611,1734285038650,-500.0,0.00019484,3]
[345483612,1734285038659,-500.0,0.00019484,3]
[345483613,1734285038669,-500.0,0.00019484,3]
[345483614,1734285038678,-500.0,0.00019484,3]
[345483615,1734285038688,-500.0,0.00019484,3]
[345483616,1734285038698,-4463.017497,0.00019484,3]
[345483617,1734285038707,-17237.023775,0.00019484,3]
[345483618,1734285038717,-4463.017497,0.00019484,3]
[345483619,1734285038726,-17237.023775,0.00019484,3]
[345483620,1734285038735,-519.67,0.00019484,3]
[345483621,1734285038744,-500.0,0.00019484,3]
[345483622,1734285038754,-500.0,0.00019484,2]
[345483623,1734285038764,-633.66,0.00019484,3]
[345483624,1734285038774,-500.0,0.00019484,3]
[345483625,1734285038783,-500.0,0.00019484,3]
[345483626,1734285038793,-500.0,0.00019484,3]
[345483627,1734285038803,-500.0,0.00019484,3]
[345483628,1734285038812,-500.0,0.00019484,3]
[345483629,1734285038821,-500.0,0.00019484,3]
[345483630,1734285038830,-500.0,0.00019484,3]
[345483631,1734285038839,-500.0,0.00019484,3]
[345483632,1734285038848,-500.0,0.00019484,3]
[345483633,1734285038858,-500.0,0.00019484,3]
[345483634,1734285038867,-500.0,0.00019484,3]
[345483635,1734285038876,-500.0,0.00019484,3]
[345483636,1734285038886,-500.0,0.00019484,3]
[345483637,1734285038895,-500.0,0.00019484,3]
[345483638,1734285038905,-357.09,0.00019484,3]
[345483639,1734285038915,-500.0,0.00019484,3]
[345483640,1734285038924,-500.0,0.00019484,3]
[345483641,1734285038933,-500.0,0.00019484,3]
[345483642,1734285038943,-500.0,0.00019484,3]
[345483643,1734285038952,-500.0,0.00019484,3]
[345483644,1734285038961,-550.25,0.00019484,3]
[345483645,1734285038970,-500.0,0.00019484,3]
[345483646,1734285038978,-500.0,0.00019484,3]
[345483647,1734285038987,-500.0,0.00019484,3]
[345483648,1734285038996,-500.0,0.00019484,3]
[345483649,1734285039006,-385.27,0.00019484,3]
[345483650,1734285039016,-500.0,0.00019484,3]
[345483651,1734285039025,-500.0,0.00019484,3]
[345483653,1734285039035,-363.54,0.00019484,3]
[345483654,1734285039044,-500.0,0.00019484,3]
[345483655,1734285039054,-500.0,0.00019484,3]
[345483656,1734285039064,-500.0,0.00019484,3]
[345483657,1734285039073,-302.75,0.00019484,3]
[345483658,1734285039082,-500.0,0.00019484,3]
[345483659,1734285039093,-500.0,0.00019484,3]
[345483660,1734285039102,-1656.3,0.00019484,3]
[345483661,1734285039112,-1656.3,0.00019484,3]
[345483662,1734285039120,-500.0,0.00019484,3]
[345483663,1734285039131,-500.0,0.00019484,3]
[345483664,1734285039140,-500.0,0.00019484,3]
[345483665,1734285039149,-500.0,0.00019484,3]
[345483666,1734285039159,-2029.46,0.00019484,3]
[345483667,1734285039168,-656.74570061,0.00019484,3]
[345483668,1734285039183,-1372.71429939,0.00019484,3]
[345483669,1734285039192,-500.0,0.00019484,3]
[345483670,1734285039202,-500.0,0.00019484,3]
[345483671,1734285039212,-500.0,0.00019484,3]
[345483672,1734285039221,-500.0,0.00019484,3]
[345483673,1734285039231,-500.0,0.00019484,3]
[345483674,1734285039241,-317.12,0.00019484,3]
[345483675,1734285039250,-500.0,0.00019484,3]
[345483676,1734285039259,-500.0,0.00019484,3]
[345483677,1734285039273,-500.0,0.00019484,3]
[345483678,1734285039283,-500.0,0.00019484,3]
[345483679,1734285039292,-556.75,0.00019484,3]
[345483680,1734285039302,-1000.0,0.00019484,3]
[345483681,1734285039311,-655.45,0.00019484,3]
[345483682,1734285039320,-500.0,0.00019484,3]
[345483683,1734285039330,-522.91,0.00019484,3]
[345483684,1734285039339,-500.0,0.00019484,3]
[345483685,1734285039349,-500.0,0.00019484,3]
[345483686,1734285039359,-643.53,0.00019484,3]
[345483687,1734285039369,-643.53,0.00019484,3]
[345483688,1734285039379,-500.0,0.00019484,3]
[345483689,1734285039393,-500.0,0.00019484,3]
[345483690,1734285039403,-500.0,0.00019484,3]
[345483691,1734285039412,-500.0,0.00019484,3]
[345483692,1734285039421,-500.0,0.00019484,3]
[345483693,1734285039433,-500.0,0.00019484,3]
[345483694,1734285039443,-500.0,0.00019484,3]
[345483695,1734285039454,-500.0,0.00019484,3]
[345483696,1734285039465,-500.0,0.00019484,3]
[345483697,1734285039476,-500.0,0.00019484,3]
[345483698,1734285039486,-500.0,0.00019484,3]
[345483699,1734285039496,-605.97,0.00019484,3]
[345483700,1734285039506,-500.0,0.00019484,3]
[345483701,1734285039517,-500.0,0.00019484,3]
[345483703,1734285039527,-500.0,0.00019484,3]
[345483704,1734285039537,-286.66,0.00019484,3]
[345483705,1734285039547,-549.69,0.00019484,3]
[345483706,1734285039556,-500.0,0.00019484,3]
[345483707,1734285039566,-461.57,0.00019484,3]
[345483708,1734285039575,-455.3231877,0.00019484,3]
[345483709,1734285039588,-44.6768123,0.00019484,3]
[345483710,1734285039598,-500.0,0.00019484,3]
[345483711,1734285039607,-500.0,0.00019484,3]
[345483712,1734285039617,-500.0,0.00019484,3]
[345483713,1734285039626,-736.58,0.00019484,3]
[345483714,1734285039635,-736.58,0.00019484,3]
[345483715,1734285039644,-500.0,0.00019484,3]
[345483716,1734285039653,-500.0,0.00019484,3]
[345483717,1734285039662,-500.0,0.00019484,3]
[345483718,1734285039672,-500.0,0.00019484,3]
[345483719,1734285039682,-500.0,0.00019484,3]
[345483720,1734285039691,-500.0,0.00019484,3]
[345483722,1734285039701,-500.0,0.00019484,3]
[345483724,1734285039710,-651.52,0.00019484,3]
[345483726,1734285039719,-651.52,0.00019484,3]
[345483727,1734285039728,-500.0,0.00019484,3]
[345483728,1734285039737,-210.29,0.00019484,3]
[345483729,1734285039747,-636.87,0.00019484,3]
[345483730,1734285039756,-433.83,0.00019484,3]
[345483731,1734285039768,-449.8301789,0.00019484,3]
[345483732,1734285039787,-50.1698211,0.00019484,3]
[345483733,1734285039797,-202.71,0.00019484,3]
[345483734,1734285039806,-500.0,0.00019484,3]
[345483735,1734285039815,-500.0,0.00019484,3]
[345483736,1734285039825,-500.0,0.00019484,3]
[345483737,1734285039834,-310.46462404,0.00019484,3]
[345483738,1734285039918,-189.53537596,0.00019484,3]
[345483739,1734285039928,-500.0,0.00019484,3]
[345483740,1734285039937,-500.0,0.00019484,3]
[345483741,1734285039947,-500.0,0.00019484,3]
[345483742,1734285039956,-500.0,0.00019484,3]
[345483743,1734285039965,-500.0,0.00019484,3]
[345483744,1734285039975,-209.31,0.00019484,3]
[345483745,1734285039984,-531.23,0.00019484,3]
[345483746,1734285039994,-500.0,0.00019484,3]
[345483747,1734285040003,-500.0,0.00019484,3]
[345483748,1734285040012,-500.0,0.00019484,3]
[345483749,1734285040024,-500.0,0.00019484,3]
[345483750,1734285040033,-227.49,0.00019484,3]
[345483751,1734285040043,-500.0,0.00019484,3]
[345483752,1734285040053,-500.0,0.00019484,3]
[345483753,1734285040063,-95.84473389,0.00019484,3]
[345483754,1734285040074,-404.15526611,0.00019484,3]
[345483755,1734285040084,-500.0,0.00019484,3]
[345483756,1734285040094,-500.0,0.00019484,3]
[345483757,1734285040103,-500.0,0.00019484,3]
[345483758,1734285040113,-239.20267324,0.00019484,3]
[345483759,1734285040125,-260.79732676,0.00019484,3]
[345483760,1734285040134,-500.0,0.00019484,3]
[345483761,1734285040143,-592.74,0.00019484,3]
[345483762,1734285040153,-500.0,0.00019484,3]
[345483763,1734285040162,-500.0,0.00019484,3]
[345483764,1734285040173,-500.0,0.00019484,3]
[345483765,1734285040182,-444.57,0.00019484,3]
[345483766,1734285040192,-500.0,0.00019484,3]
[345483767,1734285040201,-500.0,0.00019484,3]
[345483768,1734285040211,-500.0,0.00019484,3]
[345483769,1734285040220,-141.66643093,0.00019484,3]
[345483770,1734285040232,-358.33356907,0.00019484,3]
[345483771,1734285040242,-500.0,0.00019484,3]
[345483772,1734285040253,-500.0,0.00019484,3]
[345483773,1734285040262,-500.0,0.00019484,3]
[345483774,1734285040273,-500.0,0.00019484,3]
[345483775,1734285040283,-500.0,0.00019484,3]
[345483776,1734285040292,-500.0,0.00019484,3]
[345483777,1734285040302,-500.0,0.00019484,3]
[345483778,1734285040312,-500.0,0.00019484,3]
[345483779,1734285040321,-500.0,0.00019484,3]
[345483780,1734285040330,-500.0,0.00019484,3]
[345483781,1734285040340,-310.52332293,0.00019484,3]
[345483782,1734285040352,-189.47667707,0.00019484,3]
[345483783,1734285040361,-500.0,0.00019484,3]
[345483784,1734285040371,-253.84,0.00019484,3]
[345483785,1734285040380,-229.84800613,0.00019484,3]
[345483786,1734285040400,-270.15199387,0.00019484,3]
[345483787,1734285040409,-500.0,0.00019484,3]
[345483788,1734285040419,-312.69,0.00019484,3]
[345483789,1734285040428,-500.0,0.00019484,3]
[345483790,1734285040440,-179.72,0.00019484,3]
[345483791,1734285040449,-500.0,0.00019484,3]
[345483792,1734285040459,-500.0,0.00019484,3]
[345483793,1734285040469,-500.0,0.00019484,3]
[345483794,1734285040478,-500.0,0.00019484,3]
[345483795,1734285040488,-500.0,0.00019484,3]
[345483796,1734285040497,-500.0,0.00019484,3]
[345483797,1734285040506,-500.0,0.00019484,3]
[345483798,1734285040516,-500.0,0.00019484,3]
[345483799,1734285040526,-428.23800613,0.00019484,3]
[345483800,1734285040537,-71.76199387,0.00019484,3]
[345483801,1734285040547,-500.0,0.00019484,3]
[345483802,1734285040556,-28.23800613,0.00019484,3]
[345483803,1734285040569,-471.76199387,0.00019484,3]
[345483804,1734285040579,-277.94188551,0.00019484,3]
[345483805,1734285040590,-222.05811449,0.00019484,3]
[345483806,1734285040600,-331.76758058,0.00019484,3]
[345483819,1734285042914,-168.23241942,0.00019484,3]
[345483820,1734285042923,-500.0,0.00019484,3]
[345483821,1734285042933,-411.27736124,0.00019484,3]
[345483822,1734285043080,-88.72263876,0.00019484,3]
[345483823,1734285043089,-484.29,0.00019484,3]
[345483824,1734285043098,-500.0,0.00019484,3]
[345483825,1734285043108,-500.0,0.00019484,3]
[345483826,1734285043116,-500.0,0.00019484,3]
[345483827,1734285043125,-500.0,0.00019484,3]
[345483828,1734285043134,-615.68,0.00019484,3]
[345483829,1734285043143,-500.0,0.00019484,3]
[345483830,1734285043152,-427.67,0.00019484,3]
[345483831,1734285043162,-243.9,0.00019484,3]
[345483832,1734285043172,-500.0,0.00019484,3]
[345483833,1734285043182,-500.0,0.00019484,3]
[345483834,1734285043194,-500.0,0.00019484,3]
[345483835,1734285043204,-500.0,0.00019484,3]
[345483836,1734285043213,-500.0,0.00019484,3]
[345483837,1734285043223,-500.0,0.00019484,3]
[345483838,1734285043232,-555.97,0.00019484,3]
[345483839,1734285043242,-500.0,0.00019484,3]
[345483841,1734285043251,-500.0,0.00019484,3]
[345483842,1734285043261,-500.0,0.00019484,3]
[345483843,1734285043273,-500.0,0.00019484,3]
[345483844,1734285043283,-500.0,0.00019484,3]
[345483845,1734285043292,-601.54,0.00019484,3]
[345483846,1734285043302,-601.54,0.00019484,3]
[345483847,1734285043312,-500.0,0.00019484,3]
[345483848,1734285043323,-500.0,0.00019484,3]
[345483849,1734285043334,-500.0,0.00019484,3]